bitfinex-derivatives/quotes_ETHF0:USTF0_20240817
["timestamp","ask_amount","ask_price","bid_price","bid_amount"]
[1723917283631,2.53241,2617.6,2617.5,0.00416831]
[1723917284236,1.1,2617.6,2617.5,0.00416831]
[1723917285140,0.3571,2618.0,2617.5,3.82416831]
[1723917285336,2.53224,2617.9,2617.7,1.43232]
[1723917285644,2.53224,2617.9,2617.8,0.3613]
[1723917285942,1.1,2617.9,2617.8,0.3613]
[1723917286740,1.1,2617.9,2617.8,1.7936]
[1723917286935,1.1,2617.9,2617.8,0.3613]
[1723917287137,2.53224,2617.9,2617.8,0.3613]
[1723917287643,1.1,2617.9,2617.8,0.3613]
[1723917287843,2.53224,2617.9,2617.8,0.3613]
[1723917298052,6.35224,2617.9,2617.8,0.3613]
[1723917298249,6.73064,2617.9,2617.8,0.3613]
[1723917299250,6.73064,2617.9,2617.6,0.7004]
[1723917299251,1.43235,2617.7,2617.6,0.7004]
[1723917299448,2.53235,2617.7,2617.6,1.0557]
[1723917300245,2.53235,2617.7,2617.6,0.7126]
[1723917300456,2.88975,2617.7,2617.6,0.3553]
[1723917301947,2.88975,2617.7,2617.5,0.00416831]
[1723917301948,1.43241,2617.6,2617.5,0.00416831]
[1723917302346,2.86482,2617.6,2617.5,0.00416831]
[1723917302557,7.05782,2617.6,2617.5,0.00416831]
[1723917308049,5.62541,2617.6,2617.5,0.00416831]
[1723917308553,1.43241,2617.6,2617.5,0.00416831]
[1723917308749,1.1,2617.7,2617.5,0.00416831]
[1723917309049,1.1,2617.8,2617.6,1.43239]
[1723917309247,1.43228,2617.9,2617.7,1.77675]
[1723917309248,1.1,2617.9,2617.7,1.77675]
[1723917309450,1.1,2617.9,2617.7,2.13165]
[1723917310161,1.1,2617.9,2617.8,1.4323]
[1723917312857,1.1,2617.9,2617.7,2.13161]
[1723917313356,2.53226,2617.9,2617.7,2.13161]
[1723917313555,1.1,2617.8,2617.7,2.13161]
[1723917313757,1.1,2617.8,2617.7,0.6993]
[1723917315059,1.1,2617.8,2617.7,2.13165]
[1723917315255,1.1,2617.8,2617.7,5.95165]
[1723917315456,1.1,2617.9,2617.8,1.43225]
[1723917316562,0.00572727,2618.2,2618.0,1.43218]
[1723917317062,2.53782727,2618.2,2617.9,1.79161]
[1723917317265,2.53782727,2618.2,2618.0,1.43218]
[1723917317464,2.53782727,2618.2,2617.9,0.3594]
[1723917317662,1.10572727,2618.2,2618.0,1.43216]
[1723917318361,2.53781727,2618.2,2618.0,1.43216]
[1723917318548,2.53781727,2618.2,2617.9,1.79161]
[1723917318747,1.43214,2618.1,2617.9,1.79161]
[1723917318951,1.1,2618.0,2617.9,1.79161]
[1723917319164,2.53219,2618.0,2617.9,0.3594]
[1723917319361,1.1,2618.0,2617.9,0.3594]
[1723917320069,2.53219,2618.0,2617.9,0.3594]
[1723917321967,2.53219,2618.0,2617.9,1.79164]
[1723917322162,2.53219,2618.0,2617.9,0.3594]
[1723917322665,1.1,2618.0,2617.9,1.79164]
[1723917323458,2.53219,2618.0,2617.9,1.79164]
[1723917323767,1.1,2618.0,2617.9,1.79164]
[1723917323962,0.00572727,2618.2,2617.9,5.2794]
[1723917324268,0.00572727,2618.2,2618.1,1.43213]
[1723917324963,1.10572727,2618.2,2617.9,0.3594]
[1723917325157,1.10572727,2618.2,2618.0,1.43217]
[1723917325158,2.53783727,2618.2,2618.0,1.43217]
[1723917326162,1.10572727,2618.2,2618.1,1.43213]
[1723917327865,0.00572727,2618.2,2618.1,1.43213]
[1723917330068,0.00572727,2618.2,2618.1,3.96426]
[1723917330260,1.79627648,2618.7,2618.5,1.43191]
[1723917330261,1.1,2618.6,2618.5,1.43191]
[1723917330465,0.00405648,2618.7,2618.6,1.43186]
[1723917339768,1.43186,2618.6,2618.4,4.64546727]
[1723917339968,2.53186,2618.6,2618.4,4.64546727]
[1723917340168,1.43191,2618.5,2618.4,8.46466727]
[1723917340373,1.43191,2618.5,2618.4,4.64546727]
[1723917340677,1.81405648,2618.7,2618.5,1.43191]
[1723917340878,1.47295648,2618.7,2618.5,1.43191]
[1723917341174,1.43186,2618.6,2618.5,1.43191]
[1723917341878,1.43186,2618.6,2618.5,5.25111]
[1723917342678,1.43186,2618.6,2618.5,1.43191]
[1723917342986,1.43186,2618.6,2618.5,5.25111]
[1723917343183,1.43186,2618.6,2618.5,1.43191]
[1723917343365,1.43186,2618.6,2618.5,5.25111]
[1723917344376,1.43186,2618.6,2618.5,5.60541]
[1723917348580,2.90479648,2618.7,2618.6,1.43186]
[1723917348784,0.00405648,2618.7,2618.6,1.43186]
[1723917352382,1.43585648,2618.7,2618.6,1.43186]
[1723917354590,1.43186,2618.6,2618.5,1.78618]
[1723917356483,1.43186,2618.6,2618.5,0.3543]
[1723917357879,1.43186,2618.6,2618.5,1.78621]
[1723917365587,1.43588648,2618.7,2618.6,1.43186]
[1723917368686,1.43186,2618.6,2618.5,1.78618]
[1723917371992,1.43186,2618.6,2618.5,2.78457969]
[1723917372389,1.43186,2618.6,2618.5,1.78618]
[1723917373300,1.43186,2618.6,2618.5,2.78457969]
[1723917375195,1.43186,2618.6,2618.5,4.69412431]
[1723917376197,1.43186,2618.6,2618.5,5.19332416]
[1723917377699,1.43186,2618.6,2618.5,2.78824964]
[1723917377893,1.43186,2618.6,2618.5,4.69783038]
[1723917378092,1.43186,2618.6,2618.5,2.78824964]
[1723917379302,1.43186,2618.6,2618.5,1.35636964]
[1723917380003,1.43191,2618.5,2618.4,1.00779691]
[1723917380195,1.79121,2618.5,2618.4,1.91542361]
[1723917380391,1.79121,2618.5,2618.4,2.91740977]
[1723917381193,1.79121,2618.5,2618.4,1.91542361]
[1723917381395,1.79121,2618.5,2618.4,2.91735639]
[1723917382001,1.79121,2618.5,2617.9,1.73821015]
[1723917382002,10.2785,2618.5,2618.1,1.00193278]
[1723917382206,1.43219,2618.0,2617.9,1.00193278]
[1723917382404,1.43224,2617.9,2617.8,2.79983278]
[1723917382702,2.49044,2617.9,2617.8,1.36753278]
[1723917382898,1.4323,2617.8,2617.7,1.00193278]
[1723917383398,1.4323,2617.8,2617.6,4.26041278]
[1723917384099,1.43204,2618.3,2617.7,1.1]
[1723917384398,1.43221,2618.0,2617.8,1.43228]
[1723917384805,1.43221,2618.0,2617.9,0.3425]
[1723917385299,5.25221,2618.0,2617.9,0.3425]
[1723917386705,6.35221,2618.0,2617.9,0.3425]
[1723917386900,1.43224,2617.9,2617.7,1.43233]
[1723917387100,1.4323,2617.8,2617.7,0.3425]
[1723917387302,1.4515,2617.9,2617.7,0.3425]
[1723917387500,1.4515,2617.9,2617.7,1.77483]
[1723917387910,1.4515,2617.9,2617.6,4.64016]
[1723917388110,2.14582,2617.8,2617.6,4.64016]
[1723917388308,2.14582,2617.8,2617.6,3.2078]
[1723917388309,1.43235,2617.7,2617.6,3.2078]
[1723917390502,1.43235,2617.7,2617.5,2.88520831]
[1723917390905,2.14583,2617.8,2617.5,2.88520831]
[1723917391109,1.4515,2617.9,2617.6,1.1]
[1723917391110,1.43229,2617.9,2617.6,1.1]
[1723917391308,1.4323,2617.8,2617.7,0.3584]
[1723917391516,1.43228,2617.9,2617.7,1.79075]
[1723917392003,5.52011,2618.2,2617.8,1.8015]
[1723917392211,1.43218,2618.1,2617.9,2.53223]
[1723917392707,1.43219,2618.0,2617.8,3.25359]
[1723917394911,2.53224,2617.9,2617.8,0.3692]
[1723917396814,1.432,2618.4,2617.8,4.1892]
[1723917397019,1.1,2618.2,2617.9,1.1]
[1723917397208,1.43216,2618.1,2617.9,2.53221]
[1723917397610,1.43221,2618.0,2617.8,0.3692]
[1723917398009,2.89546,2618.1,2617.9,1.4322]
[1723917398715,2.89546,2618.1,2618.0,1.43219]
[1723917398912,2.53216,2618.1,2618.0,1.43219]
[1723917399111,6.35216,2618.1,2618.0,1.43219]
[1723917399922,4.92,2618.1,2618.0,1.43219]
[1723917400512,1.1,2618.1,2618.0,1.43219]
[1723917401014,4.92,2618.1,2618.0,1.43219]
[1723917401319,1.1,2618.1,2618.0,1.43219]
[1723917402722,6.35213,2618.1,2618.0,1.43219]
[1723917402913,1.1,2618.1,2618.0,1.43219]
[1723917403715,1.43213,2618.1,2618.0,1.43219]
[1723917404020,2.53213,2618.1,2618.0,1.43219]
[1723917406211,1.1,2618.1,2618.0,1.43219]
[1723917406417,1.1,2618.2,2618.1,1.4321]
[1723917406626,2.53208,2618.2,2618.1,1.4321]
[1723917407220,2.53208,2618.2,2618.1,2.1839]
[1723917407423,2.53208,2618.2,2618.1,0.7518]
[1723917409024,1.1,2618.2,2618.1,2.18393]
[1723917409620,1.1,2618.2,2618.1,0.7518]
[1723917409621,2.53208,2618.2,2618.1,0.7518]
[1723917409829,2.53208,2618.2,2618.1,2.18393]
[1723917410121,2.53208,2618.2,2618.1,0.7518]
[1723917410625,2.53208,2618.2,2618.1,2.18393]
[1723917411629,2.53208,2618.2,2618.1,0.7518]
[1723917412726,2.53208,2618.2,2618.1,2.18393]
[1723917412925,1.1,2618.2,2618.1,2.18393]
[1723917413223,2.53208,2618.2,2618.1,2.18393]
[1723917415129,3.25107,2618.4,2618.3,1.43202]
[1723917415736,7.07027,2618.4,2618.3,1.43202]
[1723917416730,2.53197,2618.4,2618.3,1.43202]
[1723917416926,1.43203,2618.3,2618.2,1.43204]
[1723917417230,2.53203,2618.3,2618.2,1.43204]
[1723917420031,1.43208,2618.2,2618.1,3.2078]
[1723917420228,1.43208,2618.2,2618.1,4.99093]
[1723917420919,1.43208,2618.2,2618.1,3.5588]
[1723917421335,2.51918,2618.2,2618.1,3.5588]
[1723917421832,1.43217,2618.1,2618.0,1.43218]
[1723917422135,2.53217,2618.1,2618.0,1.43218]
[1723917422324,2.53217,2618.1,2618.0,1.79918]
[1723917426224,2.14659,2618.2,2618.1,1.43213]
[1723917426425,1.43209,2618.2,2618.1,1.43213]
[1723917427434,1.43213,2618.1,2618.0,1.79915]
[1723917430438,2.53213,2618.1,2618.0,1.79915]
[1723917430830,2.88043,2618.1,2618.0,1.79915]
[1723917432232,2.88043,2618.1,2618.0,0.367]
[1723917433739,2.88043,2618.1,2618.0,1.79919]
[1723917434253,2.88043,2618.1,2617.9,1.00193278]
[1723917434535,2.88043,2618.1,2617.8,1.49759954]
[1723917434536,1.43224,2617.9,2617.8,1.43228]
[1723917434740,1.4323,2617.8,2617.7,3.87790615]
[1723917435137,1.4323,2617.8,2617.7,11.96703344]
[1723917436744,1.4323,2617.8,2617.7,2.77790615]
[1723917437039,1.43235,2617.7,2617.5,1.00545446]
[1723917437248,1.43241,2617.6,2617.5,1.00545446]
[1723917437432,1.43241,2617.6,2617.5,0.00416831]
[1723917438549,1.43241,2617.6,2617.5,0.34956831]
[1723917444744,2.53241,2617.6,2617.5,0.34956831]
[1723917445649,2.53241,2617.6,2617.5,1.78202831]
[1723917446442,2.53241,2617.6,2617.5,0.34956831]
[1723917447253,6.24213,2618.3,2617.8,1.43229]
[1723917447441,1.43231,2617.8,2617.7,1.43231]
[1723917447646,2.53228,2617.9,2617.8,1.4323]
[1723917448337,1.43234,2617.8,2617.7,1.43233]
[1723917449049,2.53234,2617.8,2617.7,1.43233]
[1723917451552,1.1,2617.8,2617.7,1.43233]
[1723917454852,2.5323,2617.8,2617.7,1.43233]
[1723917458161,1.1,2617.8,2617.7,1.43233]
[1723917461061,2.5323,2617.8,2617.7,1.43233]
[1723917462163,1.43236,2617.7,2617.6,1.43238]
[1723917462570,2.87814,2617.8,2617.7,1.43235]
[1723917463855,1.4458,2617.8,2617.5,0.34956831]
[1723917464062,2.53241,2617.6,2617.5,1.78201831]
[1723917466169,1.1,2617.6,2617.5,4.98981831]
[1723917466471,2.53238,2617.7,2617.5,4.98981831]
[1723917466663,1.43241,2617.6,2617.5,4.98981831]
[1723917469076,2.53237,2617.7,2617.6,1.43241]
[1723917469277,2.53237,2617.7,2617.5,3.55736831]
[1723917469278,1.43226,2617.9,2617.5,4.65736831]
[1723917469466,1.4323,2617.8,2617.7,1.43231]
[1723917469673,1.4323,2617.8,2617.7,1.43232]
[1723917474369,2.53227,2617.9,2617.8,1.4323]
[1723917474680,1.43215,2618.1,2618.0,1.43216]
[1723917474875,2.53215,2618.1,2618.0,1.43216]
[1723917475073,6.69335,2618.1,2618.0,1.43216]
[1723917475376,2.87335,2618.1,2618.0,1.43216]
[1723917476578,1.43221,2618.0,2617.9,1.43222]
[1723917476776,2.90431,2618.0,2617.9,1.43222]
[1723917477979,1.4721,2618.0,2617.7,1.43235]
[1723917478181,1.1,2617.8,2617.7,1.43235]
[1723917478573,2.5323,2617.8,2617.7,1.43235]
[1723917478983,1.43237,2617.7,2617.6,1.43237]
[1723917479177,1.1,2617.8,2617.6,1.43237]
[1723917479178,2.53235,2617.8,2617.6,1.43237]
[1723917479368,2.53235,2617.8,2617.7,1.43235]
[1723917479681,1.43241,2617.6,2617.5,5.64570446]
[1723917479883,2.53241,2617.6,2617.5,5.64570446]
[1723917480275,1.1,2617.6,2617.5,8.05224988]
[1723917480483,2.87448,2617.7,2617.6,1.43241]
[1723917480781,2.87448,2617.7,2617.6,1.00207687]
[1723917480983,2.87448,2617.7,2617.5,5.64646518]
[1723917480984,1.43241,2617.6,2617.5,5.64646518]
[1723917481183,1.43241,2617.6,2617.5,7.55672352]
[1723917481384,1.43241,2617.6,2617.5,6.55462305]
[1723917481775,1.43241,2617.6,2617.5,8.05222259]
[1723917481972,1.43241,2617.6,2617.5,7.55674601]
[1723917482375,1.43241,2617.6,2617.5,6.55462305]
[1723917482589,1.43241,2617.6,2617.5,7.5568187]
[1723917482795,1.77461,2617.6,2617.5,7.5568187]
[1723917483181,1.77461,2617.6,2617.5,6.55462305]
[1723917485183,2.87461,2617.6,2617.5,7.55684772]
[1723917485484,3.24711,2617.6,2617.5,7.55684772]
[1723917486685,3.24711,2617.6,2617.5,6.12442772]
[1723917487391,3.24711,2617.6,2617.5,1.00639298]
[1723917487591,3.24711,2617.6,2617.5,0.00416831]
[1723917492389,1.43257,2617.3,2617.0,1.00222467]
[1723917492582,1.1,2617.1,2617.0,1.00222467]
[1723917493278,2.53269,2617.1,2617.0,1.43272]
[1723917493484,1.1,2617.1,2617.0,2.43772745]
[1723917493692,2.1876,2617.2,2617.0,2.43772745]
[1723917493890,1.43268,2617.1,2617.0,2.43772745]
[1723917494086,2.52026,2617.2,2617.0,1.43550278]
[1723917494283,1.43266,2617.2,2617.1,1.43268]
[1723917494487,2.53825727,2617.4,2617.1,1.4538]
[1723917494687,1.43257,2617.3,2617.2,1.43259]
[1723917494879,1.43262,2617.2,2617.1,0.3538]
[1723917495289,1.43262,2617.2,2617.1,1.78648]
[1723917495484,1.43261,2617.3,2617.2,1.43262]
[1723917495690,1.43261,2617.3,2617.1,1.78645]
[1723917496981,2.53827727,2617.4,2617.2,1.43262]
[1723917497183,1.43257,2617.3,2617.2,1.43262]
[1723917498199,2.53827727,2617.4,2617.2,1.43262]
[1723917498589,2.53827727,2617.4,2617.3,0.3562]
[1723917500595,4.92652727,2617.4,2617.1,1.78644]
[1723917500781,1.4775,2617.3,2617.0,1.43547278]
[1723917500984,2.53268,2617.1,2617.0,1.43547278]
[1723917501189,2.53268,2617.1,2617.0,0.00278278]
[1723917502201,2.53268,2617.1,2617.0,1.43551278]
[1723917502697,2.53268,2617.1,2617.0,0.00278278]
[1723917503201,6.35348,2617.1,2617.0,0.00278278]
[1723917503397,2.53268,2617.1,2617.0,0.00278278]
[1723917503994,6.35348,2617.1,2617.0,0.00278278]
[1723917504701,9.56128,2617.1,2617.0,0.00278278]
[1723917505006,6.35348,2617.1,2617.0,0.00278278]
[1723917506510,6.35351,2617.1,2616.7,1.43288]
[1723917506802,1.1,2616.9,2616.7,1.80558]
[1723917507003,1.43286,2616.8,2616.7,0.3727]
[1723917507197,1.1,2616.9,2616.7,1.80557]
[1723917507396,1.43284,2616.8,2616.7,0.3727]
[1723917507595,0.002733,2616.8,2616.7,1.80943384]
[1723917507793,0.002733,2616.8,2616.7,2.90943384]
[1723917507993,0.002733,2616.8,2616.7,6.73103384]
[1723917511101,0.002733,2616.8,2616.7,2.90943384]
[1723917511303,0.002733,2616.8,2616.7,1.80943384]
[1723917513506,1.435573,2616.8,2616.7,1.80943384]
[1723917514708,0.002733,2616.8,2616.7,1.80943384]
[1723917514910,1.435573,2616.8,2616.7,0.37653384]
[1723917517312,1.435573,2616.8,2616.7,1.80943384]
[1723917517513,1.435573,2616.8,2616.7,0.37653384]
[1723917517809,1.435573,2616.8,2616.7,1.80943384]
[1723917518417,0.002733,2616.8,2616.7,1.80943384]
[1723917519099,0.002733,2616.8,2616.7,6.73103384]
[1723917520106,0.002733,2616.8,2616.7,15.97796209]
[1723917521515,7.2958,2617.3,2617.2,1.43262]
[1723917521812,5.52057,2617.3,2617.2,1.43262]
[1723917522512,5.52471382,2617.3,2617.2,1.43262]
[1723917523807,4.09214382,2617.3,2617.2,1.43262]
[1723917524211,5.52471382,2617.3,2617.2,1.43262]
[1723917524805,1.43671382,2617.3,2617.2,1.43262]
[1723917525004,1.43671382,2617.3,2617.1,1.059]
[1723917525005,2.53675382,2617.3,2617.1,2.49164]
[1723917525405,2.53675382,2617.3,2617.2,1.43262]
[1723917525802,2.53675382,2617.3,2617.1,2.49164]
[1723917526005,2.53675382,2617.3,2617.2,1.43262]
[1723917527517,1.10414382,2617.3,2617.2,1.43262]
[1723917527714,2.53671382,2617.3,2617.2,1.43262]
[1723917529316,2.53671382,2617.3,2617.1,2.49164]
[1723917530222,2.53671382,2617.3,2617.2,1.43262]
[1723917533525,2.53671382,2617.3,2617.1,2.49165]
[1723917533526,1.10414382,2617.3,2617.1,2.49165]
[1723917533717,1.43262,2617.2,2617.1,2.49165]
[1723917534019,1.43262,2617.2,2617.1,0.3687]
[1723917536922,1.43273,2617.0,2616.9,6.00259467]
[1723917537432,1.43273,2617.0,2616.9,9.82419467]
[1723917537723,2.53273,2617.0,2616.9,4.21002467]
[1723917538031,1.43284,2616.8,2616.7,0.00383384]
[1723917538324,2.53284,2616.8,2616.7,0.00383384]
[1723917539028,6.35444,2616.8,2616.7,0.00383384]
[1723917540026,2.53284,2616.8,2616.7,0.00383384]
[1723917540234,6.35444,2616.8,2616.7,0.00383384]
[1723917543930,2.53284,2616.8,2616.7,0.00383384]
[1723917546027,1.1,2616.8,2616.7,1.43673384]
[1723917546337,2.53284,2616.8,2616.7,0.00383384]
[1723917547519,6.35444,2616.8,2616.7,0.00383384]
[1723917547721,2.53284,2616.8,2616.7,0.00383384]
[1723917549322,2.53284,2616.8,2616.7,1.43673384]
[1723917549323,1.1,2616.8,2616.7,1.43673384]
[1723917549921,0.719,2617.1,2616.7,0.00383384]
[1723917550127,0.719,2617.1,2616.8,0.3463]
[1723917550128,3.25169,2617.1,2616.8,0.3463]
[1723917550424,1.1,2617.0,2616.9,1.78845]
[1723917554138,2.53273,2617.0,2616.9,1.78845]
[1723917554530,1.1,2617.0,2616.9,1.78845]
[1723917556444,2.53273,2617.0,2616.9,1.78845]
[1723917556648,1.1,2617.0,2616.9,1.78845]
[1723917558037,2.53273,2617.0,2616.9,1.78845]
[1723917558744,2.53273,2617.0,2616.9,0.3557]
[1723917562143,2.53273,2617.0,2616.9,1.78849]
[1723917562643,2.53273,2617.0,2616.9,0.3557]
[1723917563343,1.43279,2616.9,2616.8,0.3463]
[1723917563540,2.53279,2616.9,2616.7,3.21163384]
[1723917563842,2.18124,2616.8,2616.7,0.00383384]
[1723917564037,2.52674,2616.8,2616.7,0.00383384]
[1723917564441,6.34834,2616.8,2616.7,0.00383384]
[1723917564632,2.52674,2616.8,2616.7,0.00383384]
[1723917565848,1.43284,2616.8,2616.7,0.00383384]
[1723917566147,2.5328,2616.9,2616.7,1.78648384]
[1723917566335,2.5328,2616.9,2616.7,4.99428384]
[1723917566648,2.5328,2616.9,2616.8,0.3608]
[1723917566952,2.5328,2616.9,2616.8,1.79364]
[1723917567250,2.5328,2616.9,2616.8,0.3608]
[1723917567949,1.43284,2616.8,2616.7,0.35363384]
[1723917571046,2.53283,2616.9,2616.7,1.78651384]
[1723917571252,1.43284,2616.8,2616.7,1.78651384]
[1723917572438,1.1,2616.9,2616.7,1.78651384]
[1723917572439,2.53283,2616.9,2616.7,1.78651384]
[1723917572638,1.43284,2616.8,2616.7,1.78651384]
[1723917572838,2.5328,2616.9,2616.7,0.35363384]
[1723917573046,2.5328,2616.9,2616.7,1.78648384]
[1723917573448,2.5328,2616.9,2616.8,1.43284]
[1723917575944,1.43284,2616.8,2616.7,1.78650384]
[1723917576352,2.53283,2616.9,2616.7,1.78650384]
[1723917576750,2.53283,2616.9,2616.7,1.43670384]
[1723917577152,1.43284,2616.8,2616.7,1.43670384]
[1723917578054,2.53282,2616.9,2616.7,1.43670384]
[1723917579359,2.53282,2616.9,2616.8,1.43284]
[1723917579556,1.43269,2617.1,2616.7,9.13545851]
[1723917579749,1.43279,2616.9,2616.8,1.00222467]
[1723917579947,2.53284,2616.8,2616.7,4.64450384]
[1723917580159,2.89314,2616.8,2616.7,0.00383384]
[1723917580858,2.89314,2616.8,2616.7,1.43673384]
[1723917581353,2.89314,2616.8,2616.7,0.00383384]
[1723917583655,2.53284,2616.8,2616.7,0.00383384]
[1723917584473,1.1,2616.8,2616.7,1.43673384]
[1723917585372,1.1,2616.8,2616.7,4.64453384]
[1723917585868,2.53284,2616.8,2616.7,0.00383384]
[1723917586074,8.15968,2616.8,2616.7,0.00383384]
[1723917586273,13.15968,2616.8,2616.7,0.00383384]
[1723917587069,8.15968,2616.8,2616.7,0.00383384]
[1723917588775,8.50748,2616.8,2616.7,0.00383384]
[1723917592379,2.53301,2616.5,2616.4,0.3417]
[1723917592773,6.35461,2616.5,2616.3,1.43308]
[1723917592983,2.53301,2616.5,2616.4,0.3417]
[1723917593368,2.53301,2616.5,2616.4,0.3460637]
[1723917593773,4.29936,2616.3,2616.2,1.00160811]
[1723917593977,3.8224,2616.4,2615.6,0.3417]
[1723917593978,1.43345,2615.7,2615.6,0.3417]
[1723917594181,2.53345,2615.7,2615.6,0.3417]
[1723917594383,6.35665,2615.7,2615.6,0.3417]
[1723917594681,3.21352727,2615.9,2615.6,3.8259546]
[1723917594872,0.00572727,2615.9,2615.7,0.3556]
[1723917595176,1.1,2615.8,2615.7,0.7082]
[1723917595579,1.1,2615.8,2615.7,2.14165]
[1723917596171,1.1,2615.8,2615.7,0.7082]
[1723917596384,1.1,2615.8,2615.7,2.14165]
[1723917597577,1.1,2615.8,2615.7,5.96485]
[1723917599179,1.1,2615.8,2615.7,4.5314]
[1723917599486,1.10572727,2615.9,2615.8,1.43339]
[1723917600775,1.10572727,2615.9,2615.8,5.25659]
[1723917601086,1.10572727,2615.9,2615.8,8.46439]
[1723917601287,1.10572727,2615.9,2615.8,3.2078]
[1723917601478,0.00572727,2615.9,2615.8,9.56439]
[1723917601681,3.2078,2616.2,2615.8,9.56439]
[1723917601682,4.3078,2616.2,2616.0,1.43325]
[1723917601984,4.3078,2616.2,2616.1,0.3528]
[1723917602278,4.3078,2616.2,2616.1,2.12853]
[1723917602478,8.1302,2616.2,2615.8,3.2078]
[1723917602688,1.1,2616.1,2615.9,1.7758]
[1723917602883,1.1,2616.1,2616.0,1.43328]
[1723917603480,4.3078,2616.2,2616.1,1.43323]
[1723917603988,3.2078,2616.2,2616.1,1.43323]
[1723917604886,4.3078,2616.2,2616.1,1.80323]
[1723917606793,1.1,2616.2,2616.1,1.80323]
[1723917608388,0.00572727,2616.3,2616.2,1.43317]
[1723917608582,0.3519,2616.8,2616.5,1.43299]
[1723917608583,1.43287,2616.8,2616.5,1.43299]
[1723917608787,7.2958,2617.0,2616.6,1.0639]
[1723917609087,4.64056,2617.0,2616.6,1.0639]
[1723917609296,1.4329,2616.7,2616.6,1.0639]
[1723917610291,0.7366,2616.8,2616.6,1.0639]
[1723917610586,1.1,2616.7,2616.6,2.49685]
[1723917611693,1.1,2616.8,2616.7,1.43286]
[1723917613390,2.53286,2616.8,2616.6,2.49683]
[1723917613591,1.1,2616.7,2616.6,1.0639]
[1723917613798,1.1,2616.7,2616.6,2.49685]
[1723917614790,1.1,2616.8,2616.7,1.4329]
[1723917616590,1.10572727,2616.9,2616.8,1.43284]
[1723917617993,2.53851727,2616.9,2616.6,1.0639]
[1723917618200,1.1,2616.8,2616.7,1.43286]
[1723917628198,1.1,2616.8,2616.7,2.18646]
[1723917628896,1.10572727,2616.9,2616.8,1.43284]
[1723917629097,2.53851727,2616.9,2616.7,2.18646]
[1723917630595,1.43284,2616.8,2616.7,0.7536]
[1723917630789,2.53284,2616.8,2616.7,0.7536]
[1723917631388,1.1,2616.8,2616.7,2.1865]
[1723917633106,1.43851727,2616.9,2616.8,1.43284]
[1723917633705,1.43851727,2616.9,2616.7,2.18646]
[1723917634893,1.43851727,2616.9,2616.7,0.7536]
[1723917635307,1.43851727,2616.9,2616.7,2.18646]
[1723917636010,1.43851727,2616.9,2616.8,1.43284]
[1723917636904,1.43284,2616.8,2616.7,2.18646]
[1723917637106,2.53854727,2616.9,2616.7,2.18646]
[1723917638606,1.43284,2616.8,2616.7,2.18646]
[1723917638908,2.53855727,2616.9,2616.7,2.18646]
[1723917640801,2.53855727,2616.9,2616.8,1.43284]
[1723917641098,2.53855727,2616.9,2616.7,2.18646]
[1723917642104,2.53855727,2616.9,2616.8,1.43284]
[1723917644112,0.00572727,2616.9,2616.8,1.43284]
[1723917644298,1.43851727,2616.9,2616.8,1.43284]
[1723917644497,0.00572727,2616.9,2616.8,1.43284]
[1723917644695,0.00572727,2616.9,2616.8,7.78728]
[1723917644898,1.43673382,2617.3,2617.2,1.43262]
[1723917645104,0.00414382,2617.3,2617.2,1.43262]
[1723917645303,2.53671382,2617.3,2617.2,0.7145]
[1723917645506,2.53671382,2617.3,2617.2,1.0731]
[1723917648112,2.53671382,2617.3,2617.2,2.50572]
[1723917648703,1.10414382,2617.3,2617.2,2.50572]
[1723917649209,0.00414382,2617.3,2617.2,7.42652]
[1723917650611,0.00414382,2617.3,2617.2,6.32652]
[1723917652514,0.00414382,2617.3,2617.2,2.50572]
[1723917653706,1.43671382,2617.3,2617.2,2.50572]
[1723917654106,1.43671382,2617.3,2617.2,0.3586]
[1723917654301,2.17591382,2617.3,2617.2,0.3586]
[1723917654505,2.17591382,2617.3,2617.2,1.79122]
[1723917654704,1.43671382,2617.3,2617.2,1.79122]
[1723917656904,1.43671382,2617.3,2617.2,0.3586]
[1723917659024,2.13921382,2617.3,2617.2,0.3586]
[1723917661624,2.13921382,2617.3,2617.2,1.79122]
[1723917661810,3.23921382,2617.3,2617.2,1.79122]
[1723917662211,3.23921382,2617.3,2617.2,0.3586]
[1723917668629,3.23921382,2617.3,2617.2,1.79122]
[1723917668820,3.23921382,2617.3,2617.2,0.3586]
[1723917669723,3.23921382,2617.3,2617.2,1.79122]
[1723917671427,3.23921382,2617.3,2617.2,0.3586]
[1723917673231,3.23921382,2617.3,2617.2,1.79122]
[1723917673421,3.23921382,2617.3,2617.2,0.3586]
[1723917679231,4.29804,2617.1,2617.0,0.00572727]
[1723917679439,1.43295,2616.6,2616.5,0.3619]
[1723917679935,1.43312,2616.3,2616.2,1.00191984]
[1723917680121,1.43317,2616.2,2616.1,0.3711]
[1723917680319,1.43328,2616.0,2615.9,3.2078]
[1723917680628,2.88907,2616.1,2615.9,4.64685727]
[1723917681328,1.78907,2616.1,2616.0,1.43328]
[1723917681529,2.88907,2616.1,2615.9,4.64682727]
[1723917682429,1.43328,2616.0,2615.9,4.64686727]
[1723917683032,1.43328,2616.0,2615.9,1.43906727]
[1723917683230,1.43328,2616.0,2615.9,0.00572727]
[1723917683429,2.53328,2616.0,2615.9,0.00572727]
[1723917685340,6.35568,2616.0,2615.9,0.00572727]
[1723917687836,7.78896,2616.0,2615.9,0.00572727]
[1723917690852,10.99676,2616.0,2615.9,0.00572727]
[1723917696242,7.78896,2616.0,2615.9,0.00572727]
[1723917702849,2.8669,2615.7,2615.6,0.0027546]
[1723917703058,5.40035,2615.7,2615.6,0.0027546]
[1723917703251,14.22355,2615.7,2615.6,0.0027546]
[1723917703550,14.57855,2615.7,2615.6,0.0027546]
[1723917706253,4.30068,2615.5,2615.4,0.00572727]